[Event "*** Titled Tuesday Blitz"]
[Site "Chess.com"]
[Date "2020.05.05"]
[Round "1"]
[White "Durarbayli"]
[Black "WinningButNotReally"]
[Result "0-1"]
[WhiteElo "2799"]
[BlackElo "2441"]
[TimeControl "180+1"]
[EndTime "10:07:39 PDT"]
[Termination "WinningButNotReally won on time"]

1. e4 {[%clk 0:03:00.9]} 1... c6 {[%clk 0:02:59.5]} 2. Nf3 {[%clk 0:02:57.8]}
2... d5 {[%clk 0:02:59.6]} 3. d3 {[%clk 0:02:57.8]} 3... Bg4 {[%clk 0:02:55.9]}
4. Nbd2 {[%clk 0:02:53.7]} 4... e6 {[%clk 0:02:52.1]} 5. g3 {[%clk 0:02:47.4]}
5... Nd7 {[%clk 0:02:41.4]} 6. h3 {[%clk 0:02:43.1]} 6... Bh5 {[%clk 0:02:41]}
7. Bg2 {[%clk 0:02:42.6]} 7... Bd6 {[%clk 0:02:39.8]} 8. O-O {[%clk 0:02:41.8]}
8... Ngf6 {[%clk 0:02:38.7]} 9. Qe1 {[%clk 0:02:39.7]} 9... Qc7 {[%clk
0:02:37.6]} 10. b3 {[%clk 0:02:30.3]} 10... O-O {[%clk 0:02:32.1]} 11. Bb2
{[%clk 0:02:30.2]} 11... e5 {[%clk 0:02:29.8]} 12. Nh4 {[%clk 0:02:25.3]} 12...
Bg6 {[%clk 0:02:26]} 13. Qe3 {[%clk 0:02:10.9]} 13... Rfe8 {[%clk 0:02:13.7]}
14. Rae1 {[%clk 0:02:05.8]} 14... Qa5 {[%clk 0:02:07.5]} 15. a4 {[%clk
0:01:57.6]} 15... Bb4 {[%clk 0:02:05.4]} 16. Rd1 {[%clk 0:01:53.5]} 16... Bc3
{[%clk 0:02:02.6]} 17. Bc1 {[%clk 0:01:53.1]} 17... Bd4 {[%clk 0:01:59.3]} 18.
Qe2 {[%clk 0:01:49.3]} 18... Nh5 {[%clk 0:01:52.5]} 19. Kh2 {[%clk 0:01:47.2]}
19... Qc7 {[%clk 0:01:49.3]} 20. Nf5 {[%clk 0:01:14.4]} 20... Bxf5 {[%clk
0:01:39.7]} 21. exf5 {[%clk 0:01:14.1]} 21... g6 {[%clk 0:01:39.9]} 22. c4
{[%clk 0:01:09.9]} 22... Ndf6 {[%clk 0:01:30.7]} 23. fxg6 {[%clk 0:01:06.2]}
23... hxg6 {[%clk 0:01:28.9]} 24. Nf3 {[%clk 0:01:06.6]} 24... Bc5 {[%clk
0:01:23.9]} 25. cxd5 {[%clk 0:01:03.7]} 25... cxd5 {[%clk 0:01:22.8]} 26. Bb2
{[%clk 0:01:03.2]} 26... Bd6 {[%clk 0:01:22.9]} 27. d4 {[%clk 0:00:45.5]} 27...
e4 {[%clk 0:01:22.2]} 28. Ne5 {[%clk 0:00:44.9]} 28... Nd7 {[%clk 0:01:17.5]}
29. Rc1 {[%clk 0:00:29.6]} 29... Qd8 {[%clk 0:01:17.1]} 30. f4 {[%clk 0:00:22]}
30... Nhf6 {[%clk 0:00:30.9]} 31. f5 {[%clk 0:00:17.9]} 31... g5 {[%clk
0:00:30.7]} 32. Qe3 {[%clk 0:00:14.8]} 32... Nh5 {[%clk 0:00:29.8]} 33. f6
{[%clk 0:00:13.8]} 33... Ndxf6 {[%clk 0:00:27.7]} 34. Qxg5+ {[%clk 0:00:13.6]}
34... Kf8 {[%clk 0:00:28]} 35. Qh6+ {[%clk 0:00:12.7]} 35... Ke7 {[%clk
0:00:28.3]} 36. Ng4 {[%clk 0:00:09.4]} 36... Rh8 {[%clk 0:00:27.4]} 37. Qg5
{[%clk 0:00:07.2]} 37... Qg8 {[%clk 0:00:25.4]} 38. Qxg8 {[%clk 0:00:04.1]}
38... Raxg8 {[%clk 0:00:25.4]} 39. Nxf6 {[%clk 0:00:04.9]} 39... Bxg3+ {[%clk
0:00:25.2]} 40. Kh1 {[%clk 0:00:04.5]} 40... Nxf6 {[%clk 0:00:26.1]} 41. Ba3+
{[%clk 0:00:04.8]} 41... Ke6 {[%clk 0:00:25.8]} 42. Rc5 {[%clk 0:00:03.2]} 42...
Ng4 {[%clk 0:00:24.4]} 43. Rb5 {[%clk 0:00:02]} 43... Ne3 {[%clk 0:00:23.3]} 44.
Rg1 {[%clk 0:00:01.7]} 44... Bf2 {[%clk 0:00:23.2]} 0-1

[Event "*** Titled Tuesday Blitz"]
[Site "Chess.com"]
[Date "2020.05.05"]
[Round "1"]
[White "Stewie_89"]
[Black "AndriiTop"]
[Result "1-0"]
[WhiteElo "2622"]
[BlackElo "2296"]
[TimeControl "180+1"]
[EndTime "10:07:41 PDT"]
[Termination "Stewie_89 won by resignation"]

1. e4 {[%clk 0:03:00.3]} 1... c6 {[%clk 0:02:59.7]} 2. d4 {[%clk 0:03:00]} 2...
d5 {[%clk 0:03:00.6]} 3. Bd2 {[%clk 0:03:00.4]} 3... dxe4 {[%clk 0:03:00.1]} 4.
Be3 {[%clk 0:02:56.4]} 4... Nf6 {[%clk 0:02:59.3]} 5. h3 {[%clk 0:02:56.1]} 5...
Qb6 {[%clk 0:02:39.1]} 6. Qc1 {[%clk 0:02:51]} 6... Bf5 {[%clk 0:02:34.5]} 7. g4
{[%clk 0:02:48.7]} 7... Bg6 {[%clk 0:02:34.1]} 8. Bg2 {[%clk 0:02:48]} 8... Nbd7
{[%clk 0:02:32.7]} 9. Nc3 {[%clk 0:02:44.3]} 9... e6 {[%clk 0:02:27.5]} 10. Nge2
{[%clk 0:02:39.6]} 10... Bb4 {[%clk 0:02:00.9]} 11. a3 {[%clk 0:02:37.9]} 11...
Bxc3+ {[%clk 0:01:59.8]} 12. Nxc3 {[%clk 0:02:38.5]} 12... Qa6 {[%clk
0:01:52.4]} 13. g5 {[%clk 0:02:33.6]} 13... Nd5 {[%clk 0:01:50.2]} 14. Nxe4
{[%clk 0:02:33.2]} 14... Bxe4 {[%clk 0:01:44.1]} 15. Bxe4 {[%clk 0:02:32.6]}
15... Nxe3 {[%clk 0:01:45]} 16. Qxe3 {[%clk 0:02:31.3]} 16... Nb6 {[%clk
0:01:39.6]} 17. O-O-O {[%clk 0:02:22.8]} 17... O-O-O {[%clk 0:01:34.1]} 18. h4
{[%clk 0:02:04.7]} 18... Nc4 {[%clk 0:01:10.6]} 19. Qc3 {[%clk 0:02:03.2]} 19...
Nd6 {[%clk 0:01:04.5]} 20. Bf3 {[%clk 0:01:47.4]} 20... Qb6 {[%clk 0:01:02.1]}
21. Rd2 {[%clk 0:01:18.7]} 21... Nb5 {[%clk 0:01:00]} 22. Qe3 {[%clk 0:01:10.8]}
22... Rxd4 {[%clk 0:00:58.1]} 23. Rhd1 {[%clk 0:01:00.7]} 23... Rxd2 {[%clk
0:00:56.7]} 24. Qxd2 {[%clk 0:01:01.2]} 24... Rd8 {[%clk 0:00:54.9]} 25. Qf4
{[%clk 0:01:01.7]} 25... Rxd1+ {[%clk 0:00:53.3]} 26. Bxd1 {[%clk 0:01:01]}
26... Qc7 {[%clk 0:00:51.2]} 27. Qe4 {[%clk 0:01:00.4]} 27... g6 {[%clk
0:00:48]} 28. c4 {[%clk 0:00:55.9]} 28... Nd6 {[%clk 0:00:46.8]} 29. Qd4 {[%clk
0:00:56.1]} 29... Qd8 {[%clk 0:00:40.6]} 30. Bc2 {[%clk 0:00:44.6]} 30... Kc7
{[%clk 0:00:25.4]} 31. Qf4 {[%clk 0:00:37.6]} 31... c5 {[%clk 0:00:22.8]} 32. b4
{[%clk 0:00:36]} 32... b6 {[%clk 0:00:22.9]} 33. Qe5 {[%clk 0:00:32.6]} 33...
Qd7 {[%clk 0:00:20.8]} 34. bxc5 {[%clk 0:00:32.4]} 34... bxc5 {[%clk 0:00:21.7]}
35. Qxc5+ {[%clk 0:00:32.5]} 35... Qc6 {[%clk 0:00:22.6]} 36. Qxa7+ {[%clk
0:00:32]} 36... Qb7 {[%clk 0:00:21.9]} 37. Qxb7+ {[%clk 0:00:27.7]} 37... Nxb7
{[%clk 0:00:20.6]} 38. Kd2 {[%clk 0:00:26.8]} 38... Kd6 {[%clk 0:00:19.8]} 39.
f4 {[%clk 0:00:24.8]} 39... Kc5 {[%clk 0:00:20]} 40. Kc3 {[%clk 0:00:25.2]}
40... Nd6 {[%clk 0:00:20.1]} 41. Bd3 {[%clk 0:00:25.4]} 41... Ne8 {[%clk
0:00:19.4]} 42. a4 {[%clk 0:00:25.4]} 42... Nc7 {[%clk 0:00:19.9]} 43. a5 {[%clk
0:00:25.3]} 43... Na6 {[%clk 0:00:20.4]} 44. Be4 {[%clk 0:00:24.9]} 44... Nc7
{[%clk 0:00:17.4]} 45. Bb7 {[%clk 0:00:24.8]} 45... Ne8 {[%clk 0:00:16.3]} 46.
a6 {[%clk 0:00:22.8]} 46... Kb6 {[%clk 0:00:17.2]} 47. Kd4 {[%clk 0:00:22.9]}
47... Nc7 {[%clk 0:00:17.4]} 48. Ke5 {[%clk 0:00:20.3]} 48... Kc5 {[%clk
0:00:17.4]} 49. Kf6 {[%clk 0:00:19.3]} 49... Kxc4 {[%clk 0:00:17.1]} 50. Kxf7
{[%clk 0:00:19.8]} 50... Kd4 {[%clk 0:00:16.8]} 51. a7 {[%clk 0:00:20.2]} 51...
e5 {[%clk 0:00:17.7]} 52. fxe5 {[%clk 0:00:19.9]} 52... Kxe5 {[%clk 0:00:18.6]}
53. a8=Q {[%clk 0:00:20.4]} 53... Nxa8 {[%clk 0:00:18.9]} 54. Bxa8 {[%clk
0:00:21.3]} 54... Kf4 {[%clk 0:00:18.7]} 55. Kg7 {[%clk 0:00:21.6]} 55... Kg4
{[%clk 0:00:19]} 56. Kxh7 {[%clk 0:00:22]} 56... Kxh4 {[%clk 0:00:19.9]} 57.
Kxg6 {[%clk 0:00:22.4]} 1-0

[Event "*** Titled Tuesday Blitz"]
[Site "Chess.com"]
[Date "2020.05.05"]
[Round "1"]
[White "ALeks_Ivlev"]
[Black "ecwinslow"]
[Result "1-0"]
[WhiteElo "2568"]
[BlackElo "2236"]
[TimeControl "180+1"]
[EndTime "10:07:43 PDT"]
[Termination "ALeks_Ivlev won on time"]

1. d4 {[%clk 0:02:59.1]} 1... Nf6 {[%clk 0:02:58]} 2. c4 {[%clk 0:02:56.5]} 2...
g6 {[%clk 0:02:57.4]} 3. Nc3 {[%clk 0:02:56.2]} 3... Bg7 {[%clk 0:02:57.6]} 4.
e4 {[%clk 0:02:54.9]} 4... d6 {[%clk 0:02:58.1]} 5. Be2 {[%clk 0:02:48.5]} 5...
O-O {[%clk 0:02:56.1]} 6. Bg5 {[%clk 0:02:48.6]} 6... c5 {[%clk 0:02:43.3]} 7.
d5 {[%clk 0:02:48]} 7... h6 {[%clk 0:02:35.5]} 8. Be3 {[%clk 0:02:46.9]} 8... e6
{[%clk 0:02:34.3]} 9. dxe6 {[%clk 0:02:46.4]} 9... Bxe6 {[%clk 0:02:30.6]} 10.
h3 {[%clk 0:02:45.7]} 10... Nc6 {[%clk 0:02:24.7]} 11. Nf3 {[%clk 0:02:42.8]}
11... Re8 {[%clk 0:02:19]} 12. O-O {[%clk 0:02:41.9]} 12... Qb6 {[%clk
0:01:59.8]} 13. Qd2 {[%clk 0:02:39.5]} 13... Kh7 {[%clk 0:01:52.3]} 14. b3
{[%clk 0:02:38]} 14... Rad8 {[%clk 0:01:50.5]} 15. Rad1 {[%clk 0:02:33.3]} 15...
a6 {[%clk 0:01:45.9]} 16. Qc1 {[%clk 0:02:01.8]} 16... Qa5 {[%clk 0:01:18.7]}
17. Rd3 {[%clk 0:01:31.1]} 17... Bc8 {[%clk 0:00:44.7]} 18. Rfd1 {[%clk
0:01:11.5]} 18... Nxe4 {[%clk 0:00:33.6]} 19. Nxe4 {[%clk 0:01:11.4]} 19... Rxe4
{[%clk 0:00:32.8]} 20. Rxd6 {[%clk 0:00:46.7]} 20... Rxd6 {[%clk 0:00:31.2]} 21.
Rxd6 {[%clk 0:00:46.3]} 21... Qxa2 {[%clk 0:00:28]} 22. Bxc5 {[%clk 0:00:46.1]}
22... Qxe2 {[%clk 0:00:19.9]} 23. Be3 {[%clk 0:00:40.3]} 23... Rxe3 {[%clk
0:00:19.3]} 24. Qxe3 {[%clk 0:00:39.3]} 24... Qxe3 {[%clk 0:00:18.8]} 25. fxe3
{[%clk 0:00:40.2]} 25... Bc3 {[%clk 0:00:17.1]} 26. Kf2 {[%clk 0:00:37.8]} 26...
Be6 {[%clk 0:00:15.7]} 27. Nd4 {[%clk 0:00:34.9]} 27... Ne5 {[%clk 0:00:13.9]}
28. Nxe6 {[%clk 0:00:32.3]} 28... fxe6 {[%clk 0:00:13.9]} 29. Rxe6 {[%clk
0:00:32.7]} 29... b5 {[%clk 0:00:12]} 30. Rxa6 {[%clk 0:00:28]} 30... b4 {[%clk
0:00:11.4]} 31. c5 {[%clk 0:00:26.5]} 31... Nd3+ {[%clk 0:00:11.2]} 32. Ke2
{[%clk 0:00:22.6]} 32... Nxc5 {[%clk 0:00:10.8]} 33. Ra7+ {[%clk 0:00:21.5]}
33... Kg8 {[%clk 0:00:11.2]} 34. Rc7 {[%clk 0:00:20.4]} 34... Nxb3 {[%clk
0:00:10.9]} 35. Kd3 {[%clk 0:00:20.9]} 35... Nd2 {[%clk 0:00:10.2]} 36. g4
{[%clk 0:00:17.7]} 36... Kf8 {[%clk 0:00:07]} 37. h4 {[%clk 0:00:17.4]} 37... h5
{[%clk 0:00:06.7]} 38. gxh5 {[%clk 0:00:17.3]} 38... gxh5 {[%clk 0:00:06.8]} 39.
Rc5 {[%clk 0:00:18]} 39... Ke7 {[%clk 0:00:05.7]} 40. Rxh5 {[%clk 0:00:18.2]}
40... Nf3 {[%clk 0:00:05.3]} 41. Rh7+ {[%clk 0:00:16.9]} 41... Kf6 {[%clk
0:00:04.3]} 42. h5 {[%clk 0:00:17.2]} 42... Ne5+ {[%clk 0:00:04]} 43. Kc2 {[%clk
0:00:17.1]} 43... Nc4 {[%clk 0:00:03.2]} 44. Kb3 {[%clk 0:00:16.7]} 44... Nxe3
{[%clk 0:00:02.6]} 45. Rh8 {[%clk 0:00:17.2]} 45... Kg7 {[%clk 0:00:01.4]} 46.
Re8 {[%clk 0:00:16.8]} 46... Nf5 {[%clk 0:00:01.5]} 47. Rb8 {[%clk 0:00:15.4]}
47... Ng3 {[%clk 0:00:01.1]} 48. Rb7+ {[%clk 0:00:14.6]} 1-0

[Event "*** Titled Tuesday Blitz"]
[Site "Chess.com"]
[Date "2020.05.05"]
[Round "1"]
[White "RianKapriaga"]
[Black "turayev_shahruh17"]
[Result "0-1"]
[WhiteElo "2144"]
[BlackElo "2519"]
[TimeControl "180+1"]
[EndTime "10:07:43 PDT"]
[Termination "turayev_shahruh17 won on time"]

1. d4 {[%clk 0:02:58]} 1... d5 {[%clk 0:02:59.4]} 2. Nf3 {[%clk 0:02:58]} 2...
Nf6 {[%clk 0:02:59.4]} 3. Bf4 {[%clk 0:02:58.4]} 3... c5 {[%clk 0:02:59.3]} 4.
e3 {[%clk 0:02:58.4]} 4... Nc6 {[%clk 0:02:59.4]} 5. Nbd2 {[%clk 0:02:57.4]}
5... Qb6 {[%clk 0:02:57.9]} 6. dxc5 {[%clk 0:02:57.3]} 6... Qxb2 {[%clk
0:02:51.8]} 7. Rb1 {[%clk 0:02:54.2]} 7... Qxa2 {[%clk 0:02:49.9]} 8. c4 {[%clk
0:02:53.6]} 8... Qa5 {[%clk 0:02:43.1]} 9. Be2 {[%clk 0:02:44.1]} 9... e6 {[%clk
0:02:40]} 10. O-O {[%clk 0:02:43]} 10... a6 {[%clk 0:02:35.3]} 11. cxd5 {[%clk
0:02:38.1]} 11... Nxd5 {[%clk 0:02:34.6]} 12. Nc4 {[%clk 0:02:20.5]} 12... Qxc5
{[%clk 0:02:29.5]} 13. Rc1 {[%clk 0:02:17.1]} 13... Qb4 {[%clk 0:02:20.3]} 14.
Bg3 {[%clk 0:02:08.6]} 14... Be7 {[%clk 0:02:18.4]} 15. Qc2 {[%clk 0:02:03.1]}
15... O-O {[%clk 0:02:08.3]} 16. Rfd1 {[%clk 0:02:00.2]} 16... Bd7 {[%clk
0:01:57.2]} 17. e4 {[%clk 0:01:59.2]} 17... Nf6 {[%clk 0:01:52.2]} 18. Rb1
{[%clk 0:01:58.6]} 18... Qc5 {[%clk 0:01:49.3]} 19. Rxb7 {[%clk 0:01:33]} 19...
Nb4 {[%clk 0:01:45]} 20. Qb3 {[%clk 0:01:29]} 20... Bb5 {[%clk 0:01:44]} 21. Nd4
{[%clk 0:01:06.5]} 21... Nxe4 {[%clk 0:01:36.9]} 22. Nxb5 {[%clk 0:00:56.1]}
22... axb5 {[%clk 0:01:37.4]} 23. Nb6 {[%clk 0:00:54.3]} 23... Rad8 {[%clk
0:01:30.3]} 24. Nd7 {[%clk 0:00:50.4]} 24... Nxg3 {[%clk 0:01:22.5]} 25. hxg3
{[%clk 0:00:44.1]} 25... Qc6 {[%clk 0:01:09.6]} 26. Rb6 {[%clk 0:00:39.9]} 26...
Qc7 {[%clk 0:01:03.4]} 27. Bxb5 {[%clk 0:00:24.9]} 27... Nd5 {[%clk 0:00:54.6]}
28. Nxf8 {[%clk 0:00:19.3]} 28... Qxb6 {[%clk 0:00:52.4]} 29. Nxe6 {[%clk
0:00:16.7]} 29... fxe6 {[%clk 0:00:52]} 30. Bc4 {[%clk 0:00:16.5]} 30... Qxb3
{[%clk 0:00:51.6]} 31. Bxb3 {[%clk 0:00:16.8]} 31... Nc3 {[%clk 0:00:51.9]} 32.
Bxe6+ {[%clk 0:00:15.9]} 32... Kf8 {[%clk 0:00:52]} 33. Rxd8+ {[%clk 0:00:16]}
33... Bxd8 {[%clk 0:00:52.9]} 34. Bf5 {[%clk 0:00:16.2]} 34... g6 {[%clk
0:00:52.6]} 35. Bc2 {[%clk 0:00:16.4]} 35... Ke7 {[%clk 0:00:52.1]} 36. Kh2
{[%clk 0:00:16.4]} 36... Bb6 {[%clk 0:00:52.3]} 37. f4 {[%clk 0:00:16.6]} 37...
Kf6 {[%clk 0:00:51.5]} 38. g4 {[%clk 0:00:16.9]} 38... Bc7 {[%clk 0:00:51.4]}
39. g3 {[%clk 0:00:17.4]} 39... h6 {[%clk 0:00:51.3]} 40. Kh3 {[%clk 0:00:16.7]}
40... g5 {[%clk 0:00:51.4]} 41. f5 {[%clk 0:00:15.4]} 41... Ne2 {[%clk
0:00:50.6]} 0-1

[Event "*** Titled Tuesday Blitz"]
[Site "Chess.com"]
[Date "2020.05.05"]
[Round "1"]
[White "IAgrest"]
[Black "nurgyulsalimova"]
[Result "0-1"]
[WhiteElo "2239"]
[BlackElo "2571"]
[TimeControl "180+1"]
[EndTime "10:07:44 PDT"]
[Termination "nurgyulsalimova won on time"]

1. e4 {[%clk 0:03:00.2]} 1... c6 {[%clk 0:02:59.6]} 2. d4 {[%clk 0:03:00]} 2...
d5 {[%clk 0:02:59.7]} 3. f3 {[%clk 0:03:00.3]} 3... e6 {[%clk 0:02:24.4]} 4. Nc3
{[%clk 0:02:59.9]} 4... Bb4 {[%clk 0:02:22.2]} 5. Bf4 {[%clk 0:02:59.7]} 5...
Ne7 {[%clk 0:02:17.1]} 6. Qd3 {[%clk 0:02:58.6]} 6... b6 {[%clk 0:02:09.3]} 7.
Ne2 {[%clk 0:02:58.3]} 7... Ba6 {[%clk 0:02:03.8]} 8. Qe3 {[%clk 0:02:58.1]}
8... O-O {[%clk 0:01:57.8]} 9. O-O-O {[%clk 0:02:57.9]} 9... c5 {[%clk
0:01:51.5]} 10. Kb1 {[%clk 0:02:16.1]} 10... Nbc6 {[%clk 0:01:30.3]} 11. exd5
{[%clk 0:02:09.8]} 11... exd5 {[%clk 0:01:23.5]} 12. Bg5 {[%clk 0:01:53]} 12...
Re8 {[%clk 0:01:00.4]} 13. Qf4 {[%clk 0:01:29.8]} 13... f6 {[%clk 0:00:37.9]}
14. Bh4 {[%clk 0:01:25.7]} 14... Ng6 {[%clk 0:00:34.7]} 15. Qg4 {[%clk
0:01:10.3]} 15... Bxc3 {[%clk 0:00:20.1]} 16. Nxc3 {[%clk 0:01:10]} 16... Bxf1
{[%clk 0:00:21]} 17. Rhxf1 {[%clk 0:01:09.8]} 17... Nxd4 {[%clk 0:00:18.4]} 18.
Bf2 {[%clk 0:01:08.4]} 18... Ne5 {[%clk 0:00:16.7]} 19. Qg3 {[%clk 0:01:05.5]}
19... Nf5 {[%clk 0:00:14.7]} 20. Qh3 {[%clk 0:01:05.5]} 20... Ne7 {[%clk
0:00:14.8]} 21. Qe6+ {[%clk 0:01:03.8]} 21... Kh8 {[%clk 0:00:12.3]} 22. Nxd5
{[%clk 0:01:03.5]} 22... Nxd5 {[%clk 0:00:12.5]} 23. Qxd5 {[%clk 0:01:04.1]}
23... Qc7 {[%clk 0:00:09.9]} 24. Qb3 {[%clk 0:00:57.7]} 24... Rad8 {[%clk
0:00:09.6]} 25. a3 {[%clk 0:00:54.7]} 25... Nc6 {[%clk 0:00:08.1]} 26. h3 {[%clk
0:00:45.8]} 26... h6 {[%clk 0:00:07.9]} 27. Rfe1 {[%clk 0:00:40]} 27... Rxd1+
{[%clk 0:00:07.2]} 28. Rxd1 {[%clk 0:00:39.4]} 28... Rd8 {[%clk 0:00:07.7]} 29.
Re1 {[%clk 0:00:27.9]} 29... Qd7 {[%clk 0:00:05]} 30. Qc4 {[%clk 0:00:13.5]}
30... Qd2 {[%clk 0:00:03.1]} 31. Qe2 {[%clk 0:00:06.3]} 31... Qd7 {[%clk
0:00:02.8]} 32. Qc4 {[%clk 0:00:05.8]} 32... Ne5 {[%clk 0:00:03]} 33. Qc3 {[%clk
0:00:05.4]} 33... Qc6 {[%clk 0:00:02.7]} 34. Bg3 {[%clk 0:00:05]} 34... Ng6
{[%clk 0:00:03]} 35. h4 {[%clk 0:00:04.1]} 35... Kh7 {[%clk 0:00:03.5]} 36. h5
{[%clk 0:00:04.1]} 36... Nf8 {[%clk 0:00:03.9]} 37. Qe3 {[%clk 0:00:03.5]} 37...
Nd7 {[%clk 0:00:03.8]} 38. Qd3+ {[%clk 0:00:02.1]} 38... Kh8 {[%clk 0:00:03.6]}
39. Qg6 {[%clk 0:00:02.3]} 39... Nf8 {[%clk 0:00:03.5]} 40. Qf7 {[%clk
0:00:01.6]} 40... Qd7 {[%clk 0:00:03.3]} 0-1

[Event "*** Titled Tuesday Blitz"]
[Site "Chess.com"]
[Date "2020.05.05"]
[Round "1"]
[White "cassoulet"]
[Black "2165149677570"]
[Result "1/2-1/2"]
[WhiteElo "2609"]
[BlackElo "2305"]
[TimeControl "180+1"]
[EndTime "10:07:45 PDT"]
[Termination "Game drawn by agreement"]

1. e4 {[%clk 0:03:00.9]} 1... c5 {[%clk 0:02:58.2]} 2. Nf3 {[%clk 0:03:00.4]}
2... d6 {[%clk 0:02:57.9]} 3. d4 {[%clk 0:02:59.9]} 3... cxd4 {[%clk 0:02:58.8]}
4. Nxd4 {[%clk 0:03:00.3]} 4... Nf6 {[%clk 0:02:58.1]} 5. Nc3 {[%clk 0:03:00.8]}
5... a6 {[%clk 0:02:57.8]} 6. Bd3 {[%clk 0:02:56.7]} 6... e5 {[%clk 0:02:57.5]}
7. Nde2 {[%clk 0:02:56.3]} 7... Be6 {[%clk 0:02:57.5]} 8. O-O {[%clk 0:02:55.4]}
8... Be7 {[%clk 0:02:55.4]} 9. Kh1 {[%clk 0:02:42.9]} 9... Nbd7 {[%clk
0:02:52.1]} 10. f4 {[%clk 0:02:42.3]} 10... Qc7 {[%clk 0:02:51]} 11. Be3 {[%clk
0:02:29.8]} 11... exf4 {[%clk 0:02:49.8]} 12. Nxf4 {[%clk 0:02:29.3]} 12... O-O
{[%clk 0:02:48.9]} 13. Ncd5 {[%clk 0:02:18.4]} 13... Qd8 {[%clk 0:02:38.6]} 14.
Bd4 {[%clk 0:02:07.6]} 14... Ne5 {[%clk 0:02:37.7]} 15. Qe1 {[%clk 0:01:53.9]}
15... Nxd5 {[%clk 0:01:51]} 16. exd5 {[%clk 0:01:49.5]} 16... Nxd3 {[%clk
0:01:51]} 17. cxd3 {[%clk 0:01:42.7]} 17... Bf5 {[%clk 0:01:50.8]} 18. Nh5
{[%clk 0:01:19.4]} 18... Bxd3 {[%clk 0:01:50.8]} 19. Bxg7 {[%clk 0:01:10.9]}
19... Bh4 {[%clk 0:01:25.4]} 20. Nf6+ {[%clk 0:00:49.3]} 20... Qxf6 {[%clk
0:01:11.9]} 21. Bxf6 {[%clk 0:00:42.7]} 21... Bxe1 {[%clk 0:01:11.4]} 22. Rfxe1
{[%clk 0:00:42.1]} 22... Rfe8 {[%clk 0:01:05.6]} 23. Be7 {[%clk 0:00:39.8]}
23... Rac8 {[%clk 0:00:59.8]} 24. Bxd6 {[%clk 0:00:35.1]} 24... Rxe1+ {[%clk
0:00:56.9]} 25. Rxe1 {[%clk 0:00:36]} 25... Rd8 {[%clk 0:00:57.4]} 26. Bb4
{[%clk 0:00:25.4]} 26... Rxd5 {[%clk 0:00:56.3]} 27. Bc3 {[%clk 0:00:24.9]}
27... Rd8 {[%clk 0:00:19.6]} 28. Kg1 {[%clk 0:00:22.5]} 28... Bb5 {[%clk
0:00:18.9]} 29. Re7 {[%clk 0:00:22.1]} 29... Bc6 {[%clk 0:00:18.5]} 30. Kf2
{[%clk 0:00:21.2]} 30... h5 {[%clk 0:00:17]} 31. Re5 {[%clk 0:00:20.9]} 31...
Rd5 {[%clk 0:00:16.3]} 32. Re3 {[%clk 0:00:15.4]} 32... Kh7 {[%clk 0:00:16.1]}
33. h4 {[%clk 0:00:15.3]} 33... Kg6 {[%clk 0:00:16.4]} 34. g3 {[%clk 0:00:15.6]}
34... Rf5+ {[%clk 0:00:16.4]} 35. Ke2 {[%clk 0:00:15.3]} 35... Bb5+ {[%clk
0:00:16.1]} 36. Kd2 {[%clk 0:00:15]} 36... Rf2+ {[%clk 0:00:16.4]} 37. Kc1
{[%clk 0:00:14.4]} 37... Rf1+ {[%clk 0:00:16.2]} 38. Kc2 {[%clk 0:00:14.8]}
38... Rf2+ {[%clk 0:00:16]} 39. Kb3 {[%clk 0:00:15.3]} 39... Rf5 {[%clk
0:00:16.9]} 40. a4 {[%clk 0:00:15.5]} 40... Bc6 {[%clk 0:00:16.8]} 41. Kb4
{[%clk 0:00:15.6]} 41... Bd5 {[%clk 0:00:17.7]} 42. a5 {[%clk 0:00:15.4]} 42...
Bc6 {[%clk 0:00:18]} 43. Kc4 {[%clk 0:00:15.5]} 43... Bb5+ {[%clk 0:00:17.8]}
44. Kd4 {[%clk 0:00:15.7]} 44... Bc6 {[%clk 0:00:18.7]} 45. Kd3 {[%clk
0:00:12.8]} 45... Rd5+ {[%clk 0:00:19]} 46. Ke2 {[%clk 0:00:12.6]} 46... Rf5
{[%clk 0:00:19.9]} 47. Kd2 {[%clk 0:00:12.4]} 47... Bb5 {[%clk 0:00:20.8]} 48.
Be5 {[%clk 0:00:12.6]} 48... Rf2+ {[%clk 0:00:20.8]} 49. Kc3 {[%clk 0:00:12.9]}
49... Bc6 {[%clk 0:00:21]} 50. Kb4 {[%clk 0:00:13.2]} 50... Rf3 {[%clk
0:00:21.1]} 51. Rxf3 {[%clk 0:00:12.7]} 51... Bxf3 {[%clk 0:00:22]} 52. Kc5
{[%clk 0:00:13.5]} 52... Bc6 {[%clk 0:00:22.1]} 53. Bf4 {[%clk 0:00:13.9]} 53...
Kf5 {[%clk 0:00:23]} 54. Kd6 {[%clk 0:00:14.2]} 54... Kg6 {[%clk 0:00:23.4]} 55.
Ke7 {[%clk 0:00:14.6]} 55... Bf3 {[%clk 0:00:24]} 56. Kf8 {[%clk 0:00:15.2]}
56... Bg2 {[%clk 0:00:24.9]} 57. Ke7 {[%clk 0:00:15.7]} 57... Bc6 {[%clk
0:00:25.8]} 58. Kd6 {[%clk 0:00:16.1]} 58... Bb5 {[%clk 0:00:26.7]} 59. Ke5
{[%clk 0:00:17]} 59... Bc6 {[%clk 0:00:27.5]} 60. Be3 {[%clk 0:00:17.4]} 60...
Bb5 {[%clk 0:00:28.4]} 61. Bf2 {[%clk 0:00:18.3]} 61... Bc6 {[%clk 0:00:29]} 62.
Kf4 {[%clk 0:00:19.2]} 62... Bb5 {[%clk 0:00:29.9]} 1/2-1/2